fUST/lending_fUST_20250603
["ID","MTS","AMOUNT","RATE_DAILY","PERIOD"]
[363879878,1748907041528,-440.0,0.0001726,2]
[363879879,1748907041538,-440.0,0.0001726,2]
[363879880,1748907041549,-440.0,0.0001726,2]
[363879881,1748907041559,-440.0,0.0001726,2]
[363879882,1748907041570,-440.0,0.0001726,2]
[363879883,1748907041579,-440.0,0.0001726,2]
[363879884,1748907041589,-400.0,0.0001726,2]
[363879885,1748907041601,-3944.08,0.0001726,2]
[363879886,1748907041610,-400.0,0.0001726,2]
[363879887,1748907041620,-440.0,0.0001726,2]
[363879888,1748907041630,-440.0,0.0001726,2]
[363879889,1748907041640,-440.0,0.0001726,2]
[363879890,1748907041650,-440.0,0.0001726,2]
[363879891,1748907041659,-1686.91,0.0001726,2]
[363879892,1748907041669,-440.0,0.0001726,2]
[363879893,1748907041679,-440.0,0.0001726,2]
[363879894,1748907041688,-440.0,0.0001726,2]
[363879895,1748907041698,-2043.01,0.0001726,2]
[363879896,1748907041707,-440.0,0.0001726,2]
[363879897,1748907041716,-440.0,0.0001726,2]
[363879898,1748907041726,-754.71,0.0001726,2]
[363879899,1748907041736,-797.96,0.0001726,2]
[363879900,1748907041746,-485.37,0.0001726,2]
[363879901,1748907041756,-440.0,0.0001726,2]
[363879902,1748907041765,-440.0,0.0001726,2]
[363879903,1748907041775,-735.8,0.0001726,2]
[363879904,1748907041785,-4845.58,0.0001726,2]
[363879905,1748907041795,-854.6,0.0001726,2]
[363879906,1748907041806,-440.0,0.0001726,2]
[363879907,1748907041815,-440.0,0.0001726,2]
[363879908,1748907041825,-440.0,0.0001726,2]
[363879909,1748907041834,-440.0,0.0001726,2]
[363879910,1748907041844,-440.0,0.0001726,2]
[363879911,1748907041853,-1199.73,0.0001726,2]
[363879912,1748907041863,-440.0,0.0001726,2]
[363879913,1748907041872,-440.0,0.0001726,2]
[363879914,1748907041882,-199.99,0.0001726,2]
[363879915,1748907041891,-440.0,0.0001726,2]
[363879916,1748907041901,-448.65,0.0001726,2]
[363879917,1748907041911,-440.0,0.0001726,2]
[363879918,1748907041920,-151.0,0.000174,2]
[363879919,1748907041930,-701.71,0.00017533,2]
[363879920,1748907041940,-440.0,0.00017534,2]
[363879921,1748907041950,-390.0,0.00017534,2]
[363879922,1748907041960,-390.0,0.00017534,2]
[363879923,1748907041970,-440.0,0.00017534,2]
[363879924,1748907041979,-390.0,0.00017534,2]
[363879925,1748907041988,-390.0,0.00017534,2]
[363879926,1748907041997,-390.0,0.00017534,2]
[363879927,1748907042007,-440.0,0.00017534,2]
[363879928,1748907042016,-440.0,0.00017534,2]
[363879929,1748907042025,-440.0,0.00017534,2]
[363879930,1748907042034,-440.0,0.00017534,2]
[363879931,1748907042043,-440.0,0.00017534,2]
[363879932,1748907042055,-440.0,0.00017534,2]
[363879933,1748907042065,-440.0,0.00017534,2]
[363879934,1748907042074,-440.0,0.00017534,2]
[363879935,1748907042083,-440.0,0.00017534,2]
[363879936,1748907042093,-441.17,0.00017534,2]
[363879937,1748907042102,-440.0,0.00017534,2]
[363879938,1748907042112,-440.0,0.00017534,2]
[363879939,1748907042122,-440.0,0.00017534,2]
[363879940,1748907042131,-440.0,0.00017534,2]
[363879941,1748907042141,-390.0,0.00017534,2]
[363879942,1748907042151,-390.0,0.00017534,2]
[363879943,1748907042161,-500.0,0.00017534,2]
[363879944,1748907042170,-570.86355408,0.00017534,2]
[363879945,1748907042180,-440.0,0.00017534,2]
[363879946,1748907042189,-470.0,0.00017534,2]
[363879947,1748907042199,-390.0,0.00017534,2]
[363879948,1748907042209,-440.0,0.00017534,2]
[363879949,1748907042218,-408.15956243,0.00017534,2]
[363879950,1748907042228,-440.0,0.00017534,2]
[363879951,1748907042237,-440.0,0.00017534,2]
[363879952,1748907042246,-530.0,0.00017534,2]
[363879953,1748907042256,-440.0,0.00017534,2]
[363879954,1748907042266,-440.0,0.00017534,2]
[363879955,1748907042277,-440.0,0.00017534,2]
[363879956,1748907042286,-1240.54,0.00017534,2]
[363879957,1748907042295,-440.0,0.00017534,2]
[363879958,1748907042310,-440.0,0.00017534,2]
[363879959,1748907042320,-2050.09,0.00017534,2]
[363879960,1748907042330,-440.0,0.00017534,2]
[363879961,1748907042340,-440.0,0.00017534,2]
[363879962,1748907042350,-440.0,0.00017534,2]
[363879964,1748907042360,-673.18612309,0.00017534,2]
[363879967,1748907042533,-769.62387691,0.00017534,2]
[363879968,1748907042543,-440.0,0.00017534,2]
[363879969,1748907042554,-440.0,0.00017534,2]
[363879971,1748907042563,-440.0,0.00017534,2]
[363879973,1748907042573,-440.0,0.00017534,2]
[363879975,1748907042583,-1440.95,0.00017534,2]
[363879976,1748907042593,-440.0,0.00017534,2]
[363879977,1748907042603,-440.0,0.00017534,2]
[363879978,1748907042612,-2167.57,0.00017534,2]
[363879979,1748907042622,-2580.32,0.00017534,2]
[363879980,1748907042632,-440.0,0.00017534,2]
[363879981,1748907042641,-1026.87,0.00017534,2]
[363879982,1748907042651,-440.0,0.00017534,2]
[363879983,1748907042662,-565.49,0.00017534,2]
[363879984,1748907042671,-440.0,0.00017534,2]
[363879985,1748907042681,-440.0,0.00017534,2]
[363879986,1748907042691,-802.81,0.00017534,2]
[363879987,1748907042701,-440.0,0.00017534,2]
[363879988,1748907042710,-440.0,0.00017534,2]
[363879989,1748907042720,-440.0,0.00017534,2]
[363879991,1748907042730,-675.33,0.00017534,2]
[363879992,1748907042739,-440.0,0.00017534,2]
[363879993,1748907042749,-440.0,0.00017534,2]
[363879994,1748907042759,-440.0,0.00017534,2]
[363879995,1748907042768,-390.0,0.00017534,2]
[363879996,1748907042778,-504.7,0.00017534,2]
[363879997,1748907042788,-440.0,0.00017534,2]
[363879998,1748907042798,-440.0,0.00017534,2]
[363879999,1748907042811,-440.0,0.00017534,2]
[363880000,1748907042821,-440.0,0.00017534,2]
[363880001,1748907042831,-440.0,0.00017534,2]
[363880002,1748907042841,-440.0,0.00017534,2]
[363880003,1748907042851,-440.0,0.00017534,2]
[363880004,1748907042861,-3944.08,0.00017534,2]
[363880005,1748907042870,-440.0,0.00017534,2]
[363880006,1748907042880,-440.0,0.00017534,2]
[363880007,1748907042889,-440.0,0.00017534,2]
[363880008,1748907042899,-440.0,0.00017534,2]
[363880009,1748907042909,-1686.91,0.00017534,2]
[363880010,1748907042918,-440.0,0.00017534,2]
[363880011,1748907042927,-525.00232136,0.00017534,2]
[363880012,1748907042937,-490.12020817,0.00017534,2]
[363880013,1748907042946,-2043.01,0.00017534,2]
[363880014,1748907042956,-440.0,0.00017534,2]
[363880015,1748907042966,-440.0,0.00017534,2]
[363880016,1748907042975,-754.71,0.00017534,2]
[363880017,1748907042985,-797.96,0.00017534,2]
[363880018,1748907042994,-440.0,0.00017534,2]
[363880019,1748907043003,-440.0,0.00017534,2]
[363880020,1748907043013,-735.8,0.00017534,2]
[363880022,1748907043023,-4845.58,0.00017534,2]
[363880024,1748907043033,-854.6,0.00017534,2]
[363880025,1748907043042,-440.0,0.00017534,2]
[363880026,1748907043054,-440.0,0.00017534,2]
[363880027,1748907043064,-440.0,0.00017534,2]
[363880028,1748907043073,-440.0,0.00017534,2]
[363880029,1748907043183,-440.0,0.00017534,2]
[363880030,1748907043194,-1199.73,0.00017534,2]
[363880031,1748907043204,-440.0,0.00017534,2]
[363880032,1748907043214,-440.0,0.00017534,2]
[363880033,1748907043223,-440.0,0.00017534,2]
[363880034,1748907043232,-448.65,0.00017534,2]
[363880035,1748907043241,-440.0,0.00017534,2]
[363880036,1748907043249,-1500.0,0.00017568,2]
[363880037,1748907043257,-503.73758269,0.00017732,2]
[363880038,1748907043267,-1735.10143685,0.00017793,2]
[363880039,1748907043276,-2806.4,0.00017807,2]
[363880040,1748907043286,-2806.4,0.00017807,2]
[363880041,1748907043296,-2806.4,0.00017807,2]
[363880042,1748907043309,-2806.4,0.00017807,2]
[363880043,1748907043319,-2806.4,0.00017807,2]
[363880044,1748907043329,-2806.4,0.00017807,2]
[363880045,1748907043339,-2806.4,0.00017807,2]
[363880046,1748907043349,-2806.4,0.00017807,2]
[363880047,1748907043359,-5921.30470995,0.00017807,3]
[363880048,1748907043369,-208742.28005323,0.00017808,2]
[363880049,1748907043379,-440.0,0.00017808,2]
[363880050,1748907043388,-440.0,0.00017808,2]
[363880051,1748907043398,-380.0,0.00017808,2]
[363880052,1748907043408,-380.0,0.00017808,2]
[363880053,1748907043417,-385.0265787,0.00017808,2]
[363880054,1748907043426,-380.0,0.00017808,2]
[363880055,1748907043436,-380.0,0.00017808,2]
[363880056,1748907043446,-440.0,0.00017808,2]
[363880057,1748907043455,-440.0,0.00017808,2]
[363880058,1748907043465,-440.0,0.00017808,2]
[363880059,1748907043475,-440.0,0.00017808,2]
[363880060,1748907043484,-440.0,0.00017808,2]
[363880061,1748907043493,-380.0,0.00017808,2]
[363880062,1748907043503,-440.0,0.00017808,2]
[363880063,1748907043512,-440.0,0.00017808,2]
[363880064,1748907043523,-440.0,0.00017808,2]
[363880065,1748907043534,-440.0,0.00017808,2]
[363880066,1748907043543,-440.0,0.00017808,2]
[363880067,1748907043554,-440.0,0.00017808,2]
[363880068,1748907043564,-440.0,0.00017808,2]
[363880069,1748907043574,-440.0,0.00017808,2]
[363880070,1748907043583,-440.0,0.00017808,2]
[363880071,1748907043593,-1240.54,0.00017808,2]
[363880072,1748907043603,-440.0,0.00017808,2]
[363880073,1748907043613,-440.0,0.00017808,2]
[363880074,1748907043624,-2050.09,0.00017808,2]
[363880075,1748907043635,-151.882523,0.00017808,2]
[363880076,1748907043647,-440.0,0.00017808,2]
[363880077,1748907043658,-440.0,0.00017808,2]
[363880078,1748907043667,-440.0,0.00017808,2]
[363880079,1748907043677,-1442.81,0.00017808,2]
[363880080,1748907043686,-440.0,0.00017808,2]
[363880081,1748907043695,-440.0,0.00017808,2]
[363880082,1748907043705,-440.0,0.00017808,2]
[363880083,1748907043715,-282.81,0.00017808,2]
[363880084,1748907043725,-1440.95,0.00017808,2]
[363880085,1748907043735,-440.0,0.00017808,2]
[363880086,1748907043746,-440.0,0.00017808,2]
[363880087,1748907043756,-2167.57,0.00017808,2]
[363880088,1748907043765,-2580.32,0.00017808,2]
[363880089,1748907043775,-440.0,0.00017808,2]
[363880090,1748907043784,-1026.87,0.00017808,2]
[363880091,1748907043794,-440.0,0.00017808,2]
[363880092,1748907043805,-565.49,0.00017808,2]
[363880093,1748907043815,-440.0,0.00017808,2]
[363880094,1748907043824,-440.0,0.00017808,2]
[363880095,1748907043834,-802.81,0.00017808,2]
[363880096,1748907043844,-440.0,0.00017808,2]
[363880097,1748907043853,-440.0,0.00017808,2]
[363880098,1748907043863,-440.0,0.00017808,2]
[363880099,1748907043872,-675.33,0.00017808,2]
[363880100,1748907043882,-440.0,0.00017808,2]
[363880101,1748907043891,-440.0,0.00017808,2]
[363880102,1748907043900,-440.0,0.00017808,2]
[363880103,1748907043910,-504.7,0.00017808,2]
[363880104,1748907043920,-440.0,0.00017808,2]
[363880105,1748907043930,-440.0,0.00017808,2]
[363880106,1748907043939,-440.0,0.00017808,2]
[363880107,1748907043949,-440.0,0.00017808,2]
[363880108,1748907043959,-440.0,0.00017808,2]
[363880109,1748907043968,-440.0,0.00017808,2]
[363880110,1748907043978,-440.0,0.00017808,2]
[363880111,1748907043987,-3944.08,0.00017808,2]
[363880112,1748907043996,-440.0,0.00017808,2]
[363880113,1748907044006,-440.0,0.00017808,2]
[363880114,1748907044015,-440.0,0.00017808,2]
[363880115,1748907044025,-472.990524,0.00017808,2]
[363880116,1748907044034,-440.0,0.00017808,2]
[363880117,1748907044043,-1686.91,0.00017808,2]
[363880118,1748907044054,-440.0,0.00017808,2]
[363880119,1748907044064,-472.990524,0.00017808,2]
[363880120,1748907044074,-2043.01,0.00017808,2]
[363880121,1748907044084,-440.0,0.00017808,2]
[363880122,1748907044094,-480.0,0.00017808,2]
[363880123,1748907044104,-754.71,0.00017808,2]
[363880124,1748907044114,-797.96,0.00017808,2]
[363880125,1748907044123,-151.0,0.00017808,2]
[363880126,1748907044134,-440.0,0.00017808,2]
[363880127,1748907044144,-440.0,0.00017808,2]
[363880128,1748907044153,-735.8,0.00017808,2]
[363880129,1748907044161,-4845.58,0.00017808,2]
[363880130,1748907044170,-854.6,0.00017808,2]
[363880131,1748907044180,-440.0,0.00017808,2]
[363880132,1748907044189,-440.0,0.00017808,2]
[363880133,1748907044199,-440.0,0.00017808,2]
[363880134,1748907044209,-440.0,0.00017808,2]
[363880135,1748907044219,-440.0,0.00017808,2]
[363880136,1748907044229,-1199.73,0.00017808,2]
[363880137,1748907044239,-440.0,0.00017808,2]
[363880138,1748907044248,-286.129156,0.00017808,2]
[363880139,1748907044258,-440.0,0.00017808,2]
[363880140,1748907044267,-286.129156,0.00017808,2]
[363880141,1748907044277,-440.0,0.00017808,2]
[363880142,1748907044287,-373.158915,0.00017808,2]
[363880143,1748907044297,-373.158915,0.00017808,2]
[363880144,1748907044309,-448.65,0.00017808,2]
[363880145,1748907044319,-440.0,0.00017808,2]
[363880146,1748907044329,-500.0,0.00017823,2]
[363880147,1748907044339,-701.71,0.00017824,2]
[363880148,1748907044349,-500.0,0.00017824,2]
[363880149,1748907044359,-935.32117239,0.000179,2]
[363880150,1748907044369,-160.0,0.00017916,2]
[363880151,1748907044378,-229.39799938,0.00017916,2]
[363880152,1748907044388,-160.0,0.00017916,2]
[363880153,1748907044397,-423.56953423,0.00017916,2]
[363880154,1748907044407,-212.83419937,0.00017916,2]
[363880155,1748907044416,-12668.79298183,0.00017916,2]
[363880156,1748907044426,-48.43868039,0.00017916,2]
[363880157,1748907044440,-111.56131961,0.00017916,2]
[363880158,1748907044450,-842.5625,0.00017916,2]
[363880159,1748907044460,-254.23416737,0.00017941,2]
[363880160,1748907044470,-420.0,0.00017962,2]
[363880161,1748907044480,-2256.30452836,0.00018,2]
[363880162,1748907044490,-385.0,0.00018052,2]
[363880163,1748907044500,-701.71,0.00018081,2]
[363880164,1748907044509,-440.0,0.00018082,2]
[363880165,1748907044518,-440.0,0.00018082,2]
[363880166,1748907044532,-370.0,0.00018082,2]
[363880167,1748907044541,-370.0,0.00018082,2]
[363880168,1748907044550,-440.0,0.00018082,2]
[363880169,1748907044560,-440.0,0.00018082,2]
[363880170,1748907044569,-324.88816113,0.00018082,2]
[363880171,1748907044578,-440.0,0.00018082,2]
[363880172,1748907044587,-440.0,0.00018082,2]
[363880173,1748907044597,-440.0,0.00018082,2]
[363880174,1748907044606,-440.0,0.00018082,2]
[363880175,1748907044616,-440.0,0.00018082,2]
[363880176,1748907044625,-440.0,0.00018082,2]
[363880177,1748907044635,-440.0,0.00018082,2]
[363880178,1748907044644,-440.0,0.00018082,2]
[363880179,1748907044654,-440.0,0.00018082,2]
[363880180,1748907044663,-151.0,0.00018082,2]
[363880181,1748907044672,-1240.54,0.00018082,2]
[363880182,1748907044681,-440.0,0.00018082,2]
[363880183,1748907044691,-440.0,0.00018082,2]
[363880184,1748907044701,-2050.09,0.00018082,2]
[363880185,1748907044711,-440.0,0.00018082,2]
[363880186,1748907044721,-440.0,0.00018082,2]
[363880187,1748907044732,-440.0,0.00018082,2]
[363880188,1748907044742,-1442.81,0.00018082,2]
[363880189,1748907044752,-440.0,0.00018082,2]
[363880190,1748907044761,-440.0,0.00018082,2]
[363880191,1748907044770,-440.0,0.00018082,2]
[363880192,1748907044780,-1440.95,0.00018082,2]
[363880193,1748907044789,-373.62550337,0.00018082,2]
[363880194,1748907044798,-370.0,0.00018082,2]
[363880195,1748907044809,-2167.57,0.00018082,2]
[363880196,1748907044818,-2580.32,0.00018082,2]
[363880197,1748907044827,-440.0,0.00018082,2]
[363880198,1748907044837,-1026.87,0.00018082,2]
[363880199,1748907044846,-370.0,0.00018082,2]
[363880200,1748907044856,-565.49,0.00018082,2]
[363880201,1748907044866,-440.0,0.00018082,2]
[363880202,1748907044876,-440.0,0.00018082,2]
[363880203,1748907044885,-802.81,0.00018082,2]
[363880204,1748907044894,-440.0,0.00018082,2]
[363880205,1748907044904,-370.0,0.00018082,2]
[363880206,1748907044913,-440.0,0.00018082,2]
[363880207,1748907044924,-675.33,0.00018082,2]
[363880208,1748907044935,-440.0,0.00018082,2]
[363880209,1748907044946,-440.0,0.00018082,2]
[363880210,1748907044955,-440.0,0.00018082,2]
[363880211,1748907044961,-504.7,0.00018082,2]
[363880212,1748907044968,-440.0,0.00018082,2]
[363880213,1748907044974,-440.0,0.00018082,2]
[363880214,1748907044980,-440.0,0.00018082,2]
[363880215,1748907044987,-412.842266,0.00018082,2]
[363880216,1748907044993,-151.0,0.00018082,2]
[363880217,1748907045000,-440.0,0.00018082,2]
[363880218,1748907045007,-412.842266,0.00018082,2]
[363880219,1748907045014,-440.0,0.00018082,2]
[363880220,1748907045022,-440.0,0.00018082,2]
[363880221,1748907045031,-440.0,0.00018082,2]
[363880222,1748907045041,-151.0,0.00018082,2]
[363880223,1748907045052,-3944.08,0.00018082,2]
[363880224,1748907045061,-440.0,0.00018082,2]
[363880225,1748907045071,-440.0,0.00018082,2]
[363880226,1748907045080,-440.0,0.00018082,2]
[363880227,1748907045090,-440.0,0.00018082,2]
[363880228,1748907045099,-1686.91,0.00018082,2]
[363880229,1748907045186,-346.62,0.00018082,2]
[363880230,1748907045204,-2043.01,0.00018082,2]
[363880231,1748907045213,-440.0,0.00018082,2]
[363880232,1748907045222,-754.71,0.00018082,2]
[363880233,1748907045232,-797.96,0.00018082,2]
[363880234,1748907045241,-440.0,0.00018082,2]
[363880235,1748907045251,-440.0,0.00018082,2]
[363880236,1748907045261,-735.8,0.00018082,2]
[363880237,1748907045270,-4845.58,0.00018082,2]
[363880238,1748907045279,-854.6,0.00018082,2]
[363880239,1748907045288,-440.0,0.00018082,2]
[363880240,1748907045297,-440.0,0.00018082,2]
[363880241,1748907045307,-370.0,0.00018082,2]
[363880242,1748907045317,-440.0,0.00018082,2]
[363880243,1748907045326,-440.0,0.00018082,2]
[363880244,1748907045335,-1199.73,0.00018082,2]
[363880247,1748907045344,-440.0,0.00018082,2]
[363880249,1748907045354,-440.0,0.00018082,2]
[363880250,1748907045363,-440.0,0.00018082,2]
[363880251,1748907045372,-448.65,0.00018082,2]
[363880252,1748907045381,-440.0,0.00018082,2]
[363880253,1748907045391,-935.32117229,0.00018107,2]
[363880254,1748907045400,-1749.41132836,0.00018116,2]
[363880255,1748907045409,-935.32117229,0.00018314,2]
[363880256,1748907045418,-440.0,0.00018356,2]
[363880257,1748907045427,-440.0,0.00018356,2]
[363880258,1748907045437,-360.0,0.00018356,2]
[363880259,1748907045447,-360.0,0.00018356,2]
[363880260,1748907045457,-360.0,0.00018356,2]
[363880261,1748907045466,-440.0,0.00018356,2]
[363880263,1748907045476,-321.92203999,0.00018356,2]
[363880264,1748907045486,-440.0,0.00018356,2]
[363880265,1748907045497,-440.0,0.00018356,2]
[363880266,1748907045509,-440.0,0.00018356,2]
[363880267,1748907045520,-440.0,0.00018356,2]
[363880268,1748907045533,-440.0,0.00018356,2]
[363880269,1748907045542,-440.0,0.00018356,2]
[363880270,1748907045553,-1240.54,0.00018356,2]
[363880271,1748907045562,-440.0,0.00018356,2]
[363880272,1748907045578,-440.0,0.00018356,2]
[363880273,1748907045587,-2050.09,0.00018356,2]
[363880274,1748907045599,-440.0,0.00018356,2]
[363880275,1748907045608,-440.0,0.00018356,2]
[363880276,1748907045618,-440.0,0.00018356,2]
[363880278,1748907045627,-1442.81,0.00018356,2]
[363880280,1748907045637,-440.0,0.00018356,2]
[363880281,1748907045647,-440.0,0.00018356,2]
[363880282,1748907045656,-440.0,0.00018356,2]
[363880283,1748907045666,-1440.95,0.00018356,2]
[363880284,1748907045676,-2167.57,0.00018356,2]
[363880285,1748907045686,-2580.32,0.00018356,2]
[363880286,1748907045695,-440.0,0.00018356,2]
[363880287,1748907045705,-1026.87,0.00018356,2]
[363880288,1748907045715,-565.49,0.00018356,2]
[363880289,1748907045725,-440.0,0.00018356,2]
[363880290,1748907045735,-440.0,0.00018356,2]
[363880291,1748907045745,-802.81,0.00018356,2]
[363880292,1748907045755,-440.0,0.00018356,2]
[363880293,1748907045765,-440.0,0.00018356,2]
[363880294,1748907045775,-675.33,0.00018356,2]
[363880295,1748907045784,-440.0,0.00018356,2]
[363880296,1748907045793,-440.0,0.00018356,2]
[363880297,1748907045803,-440.0,0.00018356,2]
[363880298,1748907045812,-504.7,0.00018356,2]
[363880299,1748907045822,-440.0,0.00018356,2]
[363880300,1748907045832,-440.0,0.00018356,2]
[363880301,1748907045841,-440.0,0.00018356,2]
[363880302,1748907045850,-440.0,0.00018356,2]
[363880303,1748907045860,-440.0,0.00018356,2]
[363880304,1748907045869,-440.0,0.00018356,2]
[363880305,1748907045879,-440.0,0.00018356,2]
[363880306,1748907045888,-3944.08,0.00018356,2]
[363880307,1748907045898,-440.0,0.00018356,2]
[363880308,1748907045908,-440.0,0.00018356,2]
[363880309,1748907045917,-440.0,0.00018356,2]
[363880310,1748907045927,-440.0,0.00018356,2]
[363880311,1748907045936,-1686.91,0.00018356,2]
[363880312,1748907045946,-2043.01,0.00018356,2]
[363880313,1748907045955,-440.0,0.00018356,2]
[363880314,1748907045965,-754.71,0.00018356,2]
[363880315,1748907045974,-797.96,0.00018356,2]
[363880316,1748907045984,-440.0,0.00018356,2]
[363880317,1748907045994,-539.0,0.00018356,2]
[363880318,1748907046003,-735.8,0.00018356,2]
[363880320,1748907046013,-4845.58,0.00018356,2]
[363880321,1748907046023,-854.6,0.00018356,2]
[363880322,1748907046032,-440.0,0.00018356,2]
[363880324,1748907046042,-440.0,0.00018356,2]
[363880326,1748907046052,-440.0,0.00018356,2]
[363880327,1748907046062,-440.0,0.00018356,2]
[363880328,1748907046071,-1199.73,0.00018356,2]
[363880330,1748907046081,-440.0,0.00018356,2]
[363880331,1748907046091,-440.0,0.00018356,2]
[363880332,1748907046100,-440.0,0.00018356,2]
[363880333,1748907046109,-448.65,0.00018356,2]
[363880334,1748907046119,-518.21125641,0.00018356,2]
[363880335,1748907046128,-151.0,0.000185,2]
[363880336,1748907046138,-1735.10143685,0.00018521,2]
[363880337,1748907046148,-935.32117229,0.00018521,2]
[363880338,1748907046157,-151.0,0.00018629,2]
[363880339,1748907046168,-151.0,0.00018629,2]
[363880340,1748907046178,-369.208876,0.00018629,2]
[363880341,1748907046187,-369.208876,0.00018629,2]
[363880342,1748907046197,-701.71,0.00018629,2]
[363880343,1748907046207,-151.0,0.00018629,2]
[363880344,1748907046217,-440.0,0.0001863,2]
[363880345,1748907046227,-440.0,0.0001863,2]
[363880346,1748907046236,-350.0,0.0001863,2]
[363880347,1748907046246,-440.0,0.0001863,2]
[363880348,1748907046255,-440.0,0.0001863,2]
[363880349,1748907046265,-440.0,0.0001863,2]
[363880350,1748907046275,-440.0,0.0001863,2]
[363880351,1748907046284,-440.0,0.0001863,2]
[363880352,1748907046294,-440.0,0.0001863,2]
[363880353,1748907046304,-1240.54,0.0001863,2]
[363880354,1748907046313,-440.0,0.0001863,2]
[363880355,1748907046323,-440.0,0.0001863,2]
[363880356,1748907046333,-2050.09,0.0001863,2]
[363880357,1748907046343,-440.0,0.0001863,2]
[363880358,1748907046353,-440.0,0.0001863,2]
[363880359,1748907046363,-440.0,0.0001863,2]
[363880360,1748907046373,-1442.81,0.0001863,2]
[363880361,1748907046383,-440.0,0.0001863,2]
[363880362,1748907046393,-440.0,0.0001863,2]
[363880363,1748907046403,-440.0,0.0001863,2]
[363880364,1748907046412,-1440.95,0.0001863,2]
[363880365,1748907046422,-2167.57,0.0001863,2]
[363880366,1748907046432,-2580.32,0.0001863,2]
[363880367,1748907046442,-440.0,0.0001863,2]
[363880368,1748907046451,-1026.87,0.0001863,2]
[363880369,1748907046461,-565.49,0.0001863,2]
[363880370,1748907046471,-440.0,0.0001863,2]
[363880371,1748907046482,-440.0,0.0001863,2]
[363880372,1748907046492,-802.81,0.0001863,2]
[363880373,1748907046504,-440.0,0.0001863,2]
[363880374,1748907046514,-440.0,0.0001863,2]
[363880375,1748907046528,-675.33,0.0001863,2]
[363880376,1748907046538,-440.0,0.0001863,2]
[363880377,1748907046549,-440.0,0.0001863,2]
[363880378,1748907046559,-440.0,0.0001863,2]
[363880379,1748907046568,-504.7,0.0001863,2]
[363880380,1748907046577,-440.0,0.0001863,2]
[363880381,1748907046587,-440.0,0.0001863,2]
[363880382,1748907046598,-440.0,0.0001863,2]
[363880383,1748907046608,-350.0,0.0001863,2]
[363880384,1748907046618,-440.0,0.0001863,2]
[363880385,1748907046628,-440.0,0.0001863,2]
[363880386,1748907046638,-440.0,0.0001863,2]
[363880387,1748907046649,-3944.08,0.0001863,2]
[363880388,1748907046659,-350.0,0.0001863,2]
[363880389,1748907046668,-440.0,0.0001863,2]
[363880390,1748907046678,-440.0,0.0001863,2]
[363880391,1748907046688,-440.0,0.0001863,2]
[363880392,1748907046697,-1686.91,0.0001863,2]
[363880393,1748907046707,-2043.01,0.0001863,2]
[363880394,1748907046719,-440.0,0.0001863,2]
[363880395,1748907046730,-754.71,0.0001863,2]
[363880396,1748907046740,-797.96,0.0001863,2]